Cogmind - Beta 11.1 @@@ ROGUE MODE // 2022.08.09 @ 04:08:50 Player: John_Oxford Result: Destroyed by S-27 Virus with Autogun Performance ------------- Evolutions (5) 2500 Regions Visited (11) 2200 Robots Destroyed (10) 50 Value Destroyed (354) 354 Prototype IDs (2) 40 Alien Tech Used (0) 0 Bonus (800) 800 TOTAL SCORE: 5944 Bonus ------- Entered DSFs 500 Aligned with FarCom 300 Cogmind --------- Core Integrity 0/1000 Matter 139/300 Energy 99/100 System Corruption 6% Temperature Cool (0) Movement Core (50) Location -5/Factory Parts ------- > --- POWER (1) -------- (None) > --- PROPULSION (4) --- (None) > --- UTILITY (10) ----- Improved Targeting Computer Improved Targeting Computer Advanced Targeting Computer Improved Hacking Suite Advanced Hacking Suite > --- WEAPON (2) ------- (None) > --- INVENTORY (5) ---- Light Treads Huge Storage Unit Advanced Targeting Computer Improved System Restoration Module Gatling Laser Peak State ------------ > --- POWER ------------ Micro Nuclear Core > --- PROPULSION ------- Nuclear Pulse Array > --- UTILITY ---------- Small Storage Unit Advanced Sensor Array Improved Targeting Computer Improved Targeting Computer Improved Targeting Computer Improved Targeting Computer Advanced Targeting Computer Improved Shield Generator > --- WEAPON ----------- (None) > --- INVENTORY -------- Cold Fusion Reactor Light Treads Light Treads Carbon-fiber Leg Huge Storage Unit Improved System Restoration Module Gatling Laser Micro-nuke Launcher [Rating: 39] Favorites ----------- Power Ion Engine Engine Ion Engine Power Core Micro Nuclear Core Reactor Cold Fusion Reactor Propulsion Potential Leg Leg Potential Leg Flight Unit Nuclear Pulse Array Utility Improved Targeting Computer Device Coolant Injector Storage Small Storage Unit Processor Improved Targeting Computer Hackware Improved Hacking Suite Protection Layered Medium Armor Plating Weapon Medium Laser Energy Gun Medium Laser Launcher Grenade Launcher Build | -11 -10 -10 -10 -9 -8 -7 -7 -7 -7 -6 -5 ------- Run | Scr Mat Min Exi Min Mat Fac Was Fac DSF Fac Fac Slots Evolved 10 | . . . . . 4 2 . . . 2 2 Power . | . . . . . . . . . . . . Propulsion 2 | . . . . . 2 . . . . . . Utility 8 | . . . . . 2 2 . . . 2 2 Weapon . | . . . . . . . . . . . . Parts Attached 44 | 6 . . 2 2 3 2 1 . 7 2 19 Power 9 | 1 . . . 1 . . . . 1 1 5 Engine 2 | 1 . . . 1 . . . . . . . Core 6 | . . . . . . . . . 1 1 4 Reactor 1 | . . . . . . . . . . . 1 Propulsion 12 | 2 . . 2 . 2 . 1 . 3 . 2 Treads . | . . . . . . . . . . . . Leg 8 | 2 . . 2 . 2 . 1 . . . 1 Wheel . | . . . . . . . . . . . . Hover . | . . . . . . . . . . . . Flight 4 | . . . . . . . . . 3 . 1 Utility 14 | 1 . . . . . . . . 2 1 10 Device 4 | . . . . . . . . . 1 1 2 Storage 1 | 1 . . . . . . . . . . . Processor 5 | . . . . . . . . . . . 5 Hackware 3 | . . . . . . . . . . . 3 Protection 1 | . . . . . . . . . 1 . . Artifact . | . . . . . . . . . . . . Weapon 9 | 2 . . . 1 1 2 . . 1 . 2 Energy Gun 6 | 2 . . . 1 . 2 . . 1 . . Energy Cannon . | . . . . . . . . . . . . Ballistic Gun . | . . . . . . . . . . . . Ballistic Cannon . | . . . . . . . . . . . . Launcher 3 | . . . . . 1 . . . . . 2 Special Weapon . | . . . . . . . . . . . . Impact Weapon . | . . . . . . . . . . . . Slashing Weapon . | . . . . . . . . . . . . Piercing Weapon . | . . . . . . . . . . . . Special Melee Weapon . | . . . . . . . . . . . . Unidentified Prototypes 2 | . . . 1 . . . . . . . 1 Parts Lost 21 | . . . . 3 4 . 1 . 2 1 10 Power 3 | . . . . 1 1 . . . . . 1 Propulsion 6 | . . . . . 1 . . . 1 1 3 Utility 5 | . . . . . . . . . . . 5 Weapon 7 | . . . . 2 2 . 1 . 1 . 1 Highest Loss Streak 7 | . . . . 2 4 . 1 . 2 1 7 To Critical Strikes . | . . . . . . . . . . . . Average Slot Usage (%) 51 | . 85 85 85 72 68 29 36 30 41 23 39 Engine 4 | . 14 14 14 14 9 . . . . . . Core 1 | . . . . . . . . . 5 . 3 Leg 12 | . 28 28 28 28 34 15 15 15 11 . . Flight 2 | . . . . . . . . . . 13 3 Storage 7 | . 14 14 14 14 9 7 7 7 7 6 4 Processor 9 | . . . . . . . . . . . 21 Energy Gun 9 | . 28 28 28 15 8 6 13 7 13 . . Naked Turns . | . . . . . . . . . . . . Heaviest Build 26 | 14 14 14 14 14 15 11 11 8 26 9 17 Greatest Support 80 | 20 20 20 60 60 80 60 60 60 60 9 15 Greatest Overweight (x) 2 | 2 . . . . . . . . . 1 1 Average Overweight (x) . | . . . . . . . . . . . . Largest Inventory Capacity 8 | 8 8 8 8 8 8 8 8 8 8 8 8 Average Capacity 7 | 7 8 8 8 8 8 8 8 8 8 8 7 Most Carried 8 | 8 6 8 8 8 5 7 8 8 8 8 8 Average Carried 7 | 4 5 7 7 7 4 5 7 7 7 7 7 Final Capacity 8 | 8 8 8 8 8 8 8 8 8 8 8 5 Final Carried 8 | 4 6 8 8 6 5 7 7 8 5 8 5 Class Distribution -------------------- 90% | Mutant 4% | Scout 4% | Hacker-Mutant Dominant Class ---------------- Mutant | -10/Materials Mutant | -10/Mines Mutant | -10/Exiles Mutant | -9/Mines Mutant | -8/Materials Mutant | -7/Factory Mutant | -7/Waste Mutant | -7/Factory Mutant | -7/DSF Mutant | -6/Factory Mutant | -5/Factory Resources | -11 -10 -10 -10 -9 -8 -7 -7 -7 -7 -6 -5 ----------- Run | Scr Mat Min Exi Min Mat Fac Was Fac DSF Fac Fac Matter Collected 423 | 235 . 21 . 15 5 . . . . . 147 Remotely . | . . . . . . . . . . . . Salvage Created 234 | . . 163 . . . . . . . . 71 Parts 15 | . . 6 . . . . . . . . 9 Haulers Intercepted . | . . . . . . . . . . . . Recyclers Shooed . | . . . . . . . . . . . . Parts Field Recycled . | . . . . . . . . . . . . Retrieved Matter . | . . . . . . . . . . . . Parts Self-Destructed . | . . . . . . . . . . . . Prevented . | . . . . . . . . . . . . Kills | -11 -10 -10 -10 -9 -8 -7 -7 -7 -7 -6 -5 ------- Run | Scr Mat Min Exi Min Mat Fac Was Fac DSF Fac Fac Combat Hostiles Destroyed 10 | . . 4 . . . . . . . . 6 Guns 3 | . . 3 . . . . . . . . . AOE 6 | . . . . . . . . . . . 6 Classes Destroyed 2 | . . 1 . . . . . . . . 1 Swarmer 6 | . . . . . . . . . . . 6 Grunt 4 | . . 4 . . . . . . . . . Best Kill Streak 6 | . . 2 . . . . . . . . 6 Combat Bots Only 6 | . . 2 . . . . . . . . 6 Max Kills in Single Turn 4 | . . 1 . . . . . . . . 4 Gunslinging . | . . . . . . . . . . . . Exploded 4 | . . . . . . . . . . . 4 Melee . | . . . . . . . . . . . . Uniques/NPCs Destroyed . | . . . . . . . . . . . . Combat | -11 -10 -10 -10 -9 -8 -7 -7 -7 -7 -6 -5 -------- Run | Scr Mat Min Exi Min Mat Fac Was Fac DSF Fac Fac Damage Taken 3537 | . . 188 . 446 723 . 47 . 493 45 1595 Core 1628 | . . 46 . 52 301 . . . 200 16 1013 Absorbed by Shields . | . . . . . . . . . . . . Core Remaining (%) 74 | 100 . . . 60 45 . . . 71 98 . Volleys Fired 19 | . . 15 . 2 . . . . . . 2 Largest 2 | . . 2 . 2 . . . . . . 1 Hottest 100 | . . 100 . 100 . . . . . . 49 Shots Fired 35 | . . 30 . 3 . . . . . . 2 Gun 33 | . . 30 . 3 . . . . . . . Cannon . | . . . . . . . . . . . . Launcher 2 | . . . . . . . . . . . 2 Special . | . . . . . . . . . . . . Kinetic . | . . . . . . . . . . . . Thermal 33 | . . 30 . 3 . . . . . . . Explosive 2 | . . . . . . . . . . . 2 Electromagnetic . | . . . . . . . . . . . . Robot Hit Streak 6 | . . 6 . 2 . . . . . . 3 Robot Miss Streak 2 | . . 2 . 1 . . . . . . . Penetration Max . | . . . . . . . . . . . . Secondary Targets . | . . . . . . . . . . . . Shots Hit Robots 20 | . . 17 . 2 . . . . . . 1 Core Hits 20 | 1 . 8 . 4 . . . . . . 7 Critical Kills . | . . . . . . . . . . . . Critical Parts Destroyed . | . . . . . . . . . . . . Critical Strikes 2 | . . 1 . 1 . . . . . . . Burn 2 | . . 1 . 1 . . . . . . . Melee Attacks . | . . . . . . . . . . . . Impact . | . . . . . . . . . . . . Slashing . | . . . . . . . . . . . . Piercing . | . . . . . . . . . . . . Sneak Attacks . | . . . . . . . . . . . . Combat Hostiles . | . . . . . . . . . . . . Follow-up Attacks . | . . . . . . . . . . . . Damage Inflicted 1100 | 3 . 214 . 68 5 . . . . . 810 Guns 238 | . . 214 . 24 . . . . . . . Cannons . | . . . . . . . . . . . . Explosions 810 | . . . . . . . . . . . 810 Melee . | . . . . . . . . . . . . Ramming 52 | 3 . . . 44 5 . . . . . . Kinetic . | . . . . . . . . . . . . Thermal 330 | . . 214 . 24 . . . . . . 92 Explosive 718 | . . . . . . . . . . . 718 Electromagnetic . | . . . . . . . . . . . . Impact . | . . . . . . . . . . . . Slashing . | . . . . . . . . . . . . Piercing . | . . . . . . . . . . . . Highest Corruption 6 | . . . . 2 4 1 6 6 6 . 6 Average Corruption 4 | . . . . 2 3 1 5 6 6 . 4 Corruption Purged . | . . . . . . . . . . . . Corruption Blocked . | . . . . . . . . . . . . Effects 14 | . . . . 2 . 1 2 4 2 . 3 Message Errors 4 | . . . . 2 . . . . 1 . 1 Matter Fused 3 | . . . . . . 1 . 2 . . . Heat Flow Errors 1 | . . . . . . . . 1 . . . Energy Discharges 1 | . . . . . . . . . . . 1 Parts Rejected 1 | . . . . . . . . . 1 . . Data Loss (minor) 2 | . . . . . . . 1 . . . 1 Alerts 2 | . . . . . . . 1 1 . . . Overload Shots . | . . . . . . . . . . . . Overflow Damage 26 | . . . . . . . . . . . 26 Projectiles . | . . . . . . . . . . . . Explosions 26 | . . . . . . . . . . . 26 Melee . | . . . . . . . . . . . . Knockbacks . | . . . . . . . . . . . . Impact . | . . . . . . . . . . . . Kinetic . | . . . . . . . . . . . . Secondary . | . . . . . . . . . . . . Self-Inflicted Damage 23 | . . . . . . . . . . . 23 Shots 1 | . . . . . . . . . . . 1 Rammed . | . . . . . . . . . . . . Targets Rammed 16 | 1 . . . 13 2 . . . . . . Kicked 16 | 1 . . . 13 2 . . . . . . Crushed . | . . . . . . . . . . . . Highest Temperature 447 | . . 447 . 61 . . . 146 . . . Average Temperature 167 | . . 192 . 27 . . . 86 . . . Received Heat Transfer 379 | . . 108 . 100 144 . . . . 18 9 Siege Activations . | . . . . . . . . . . . . Robots Corrupted . | . . . . . . . . . . . . Combat Hostiles . | . . . . . . . . . . . . Parts Fried . | . . . . . . . . . . . . Impact Corruptions . | . . . . . . . . . . . . Robots Melted 1 | . . 1 . . . . . . . . . Combat Hostiles 1 | . . 1 . . . . . . . . . Parts Melted 4 | . . 4 . . . . . . . . . Heat Transferred 901 | . . 703 . 148 . . . . . . 50 Parts Sabotaged . | . . . . . . . . . . . . Parts Stolen . | . . . . . . . . . . . . Parts Stripped . | . . . . . . . . . . . . Power Chain Reactions . | . . . . . . . . . . . . Missiles Intercepted . | . . . . . . . . . . . . Alert | -11 -10 -10 -10 -9 -8 -7 -7 -7 -7 -6 -5 ------- Run | Scr Mat Min Exi Min Mat Fac Was Fac DSF Fac Fac Peak Influence 323 | . . 115 . 35 37 . 15 10 7 44 323 Initial 21 | . . . . . 13 . . 10 7 . 21 Average 40 | . . 78 . 11 15 . 2 10 3 31 59 Maximum Alert Level 1 | . . . . . . . . . . . 1 Low Security (%) 91 | 100 100 100 . 100 100 100 100 100 100 100 83 Level 1 8 | . . . . . . . . . . . 16 Level 2 . | . . . . . . . . . . . . Level 3 . | . . . . . . . . . . . . Level 4 . | . . . . . . . . . . . . Level 5 . | . . . . . . . . . . . . High Security . | . . . . . . . . . . . . Max Security . | . . . . . . . . . . . . Squads Dispatched 9 | . . . . 1 2 . . . 1 1 4 Investigation 3 | . . . . 1 1 . . . . . 1 Extermination 1 | . . . . . . . . . . . 1 Reinforcement 5 | . . . . . 1 . . . 1 1 2 Assault . | . . . . . . . . . . . . Garrison . | . . . . . . . . . . . . Intercept . | . . . . . . . . . . . . Searches Triggered . | . . . . . . . . . . . . Construction Impeded . | . . . . . . . . . . . . Haulers Reinforced . | . . . . . . . . . . . . Active Scanning Responses . | . . . . . . . . . . . . Cargo Convoy Interrupts . | . . . . . . . . . . . . Stealth | -11 -10 -10 -10 -9 -8 -7 -7 -7 -7 -6 -5 --------- Run | Scr Mat Min Exi Min Mat Fac Was Fac DSF Fac Fac Distress Signals 2 | . . . . . 1 . . . . 1 . Communications Jammed . | . . . . . . . . . . . . Distress Signals . | . . . . . . . . . . . . Times Spotted 74 | . 1 4 . 18 14 . 6 . 6 4 21 Peak Tracking Total 13 | . . 2 . 12 13 . 6 . 6 6 9 Tactical Retreats 9 | . . . . 5 . . . . . . 4 Traps | -11 -10 -10 -10 -9 -8 -7 -7 -7 -7 -6 -5 ------- Run | Scr Mat Min Exi Min Mat Fac Was Fac DSF Fac Fac Traps Triggered 6 | . . . . . 3 2 . . 1 . . Indirectly . | . . . . . . . . . . . . Trap Hack Attempts . | . . . . . . . . . . . . Triggered . | . . . . . . . . . . . . Disarmed . | . . . . . . . . . . . . Reprogrammed . | . . . . . . . . . . . . Reused . | . . . . . . . . . . . . Traps Extracted . | . . . . . . . . . . . . Installed . | . . . . . . . . . . . . Triggered . | . . . . . . . . . . . . Machines | -11 -10 -10 -10 -9 -8 -7 -7 -7 -7 -6 -5 ---------- Run | Scr Mat Min Exi Min Mat Fac Was Fac DSF Fac Fac Machines Disabled 3 | . . . . . . . . . . . 3 Max in Single Turn 1 | . . . . . . . . . . . 1 Machines Sabotaged . | . . . . . . . . . . . . Garrisons Compromised . | . . . . . . . . . . . . Overloaded Fab Kills . | . . . . . . . . . . . . Hacking | -11 -10 -10 -10 -9 -8 -7 -7 -7 -7 -6 -5 --------- Run | Scr Mat Min Exi Min Mat Fac Was Fac DSF Fac Fac Machines Accessed 13 | . 2 . . 1 1 1 . 1 . 2 5 Terminals 9 | . 1 . . 1 1 . . 1 . 1 4 Fabricators 3 | . . . . . . 1 . . . 1 1 Repair Stations . | . . . . . . . . . . . . Recycling Units 1 | . 1 . . . . . . . . . . Scanalyzers . | . . . . . . . . . . . . Garrison Access . | . . . . . . . . . . . . Total Hacks 25 | . 3 . . 2 3 2 . 1 . 3 11 Successful 11 | . 3 . . . 1 . . 1 . 1 5 Failed 14 | . . . . 2 2 2 . . . 2 6 Catastrophic 4 | . . . . 2 1 . . . . . 1 Database Lockouts . | . . . . . . . . . . . . Manual 8 | . . . 1 2 3 . . . . . 2 Terminals 19 | . 1 . . 2 3 . . 1 . 2 10 Fabricators 4 | . . . . . . 2 . . . 1 1 Repair Stations . | . . . . . . . . . . . . Recycling Units 2 | . 2 . . . . . . . . . . Scanalyzers . | . . . . . . . . . . . . Garrison Access . | . . . . . . . . . . . . Terminal Hacks 8 | . 1 . . . 1 . . 1 . . 5 Open DSF 2 | . . . . . . . . 1 . . 1 Level Access Points 1 | . . . . . 1 . . . . . . Branch Access Points 1 | . . . . . . . . . . . 1 Emergency Access Points 1 | . . . . . . . . . . . 1 Alert Level 1 | . . . . . . . . . . . 1 Zone Layout 2 | . 1 . . . . . . . . . 1 Fabricator Hacks 1 | . . . . . . . . . . 1 . Build 1 | . . . . . . . . . . 1 . Repair Station Hacks . | . . . . . . . . . . . . Recycling Unit Hacks 2 | . 2 . . . . . . . . . . Report Inventory 1 | . 1 . . . . . . . . . . Retrieve Components 1 | . 1 . . . . . . . . . . Scanalyzer . | . . . . . . . . . . . . Garrison Access Hacks . | . . . . . . . . . . . . Unauthorized Hacks . | . . . . . . . . . . . . Terminals . | . . . . . . . . . . . . Fabricators . | . . . . . . . . . . . . Repair Stations . | . . . . . . . . . . . . Recycling Units . | . . . . . . . . . . . . Scanalyzers . | . . . . . . . . . . . . Garrison Access . | . . . . . . . . . . . . Data Cores Recovered . | . . . . . . . . . . . . Used . | . . . . . . . . . . . . Hacking Detections 11 | . 2 . . 1 1 1 . . . 2 4 Full Trace Events 2 | . . . . 1 . . . . . . 1 Feedback Events 1 | . . . . . . . . . . . 1 Corruption 1 | . . . . . . . . . . . 1 Feedback Blocked . | . . . . . . . . . . . . Robot Schematics Acquired . | . . . . . . . . . . . . Robots Built . | . . . . . . . . . . . . Authchips . | . . . . . . . . . . . . Time . | . . . . . . . . . . . . Total Robot Build Rating . | . . . . . . . . . . . . Part Schematics Acquired . | . . . . . . . . . . . . Parts Built 1 | . . . . . . . . . . 1 . Authchips . | . . . . . . . . . . . . Time 39 | . . . . . . . . . . 39 . Total Part Build Rating 7 | . . . . . . . . . . 7 . Parts Repaired . | . . . . . . . . . . . . Time . | . . . . . . . . . . . . Parts Recycled . | . . . . . . . . . . . . Recycled Matter . | . . . . . . . . . . . . Retrieved Matter . | . . . . . . . . . . . . Retrieved Components 3 | . 3 . . . . . . . . . . Parts Scanalyzed . | . . . . . . . . . . . . Part Schematics Acquired . | . . . . . . . . . . . . Parts Damaged . | . . . . . . . . . . . . Bothacking | -11 -10 -10 -10 -9 -8 -7 -7 -7 -7 -6 -5 ------------ Run | Scr Mat Min Exi Min Mat Fac Was Fac DSF Fac Fac Used RIF Installer . | . . . . . . . . . . . . Robots Hacked . | . . . . . . . . . . . . Non-combat . | . . . . . . . . . . . . Combat . | . . . . . . . . . . . . Robot Hacks Applied . | . . . . . . . . . . . . Relay Couplers Released . | . . . . . . . . . . . . Fabnet Peak Effective % . | . . . . . . . . . . . . Robots Rewired . | . . . . . . . . . . . . Allies Hacked . | . . . . . . . . . . . . Hacks Repelled . | . . . . . . . . . . . . Allies | -11 -10 -10 -10 -9 -8 -7 -7 -7 -7 -6 -5 -------- Run | Scr Mat Min Exi Min Mat Fac Was Fac DSF Fac Fac Total Allies . | . . . . . . . . . . . . Largest Group . | . . . . . . . . . . . . Highest-Rated Group . | . . . . . . . . . . . . Highest-Rated Ally . | . . . . . . . . . . . . Total Orders . | . . . . . . . . . . . . Ally Attacks . | . . . . . . . . . . . . Total Damage . | . . . . . . . . . . . . Kills . | . . . . . . . . . . . . Allies Corrupted . | . . . . . . . . . . . . Allies Melted . | . . . . . . . . . . . . Intel | -11 -10 -10 -10 -9 -8 -7 -7 -7 -7 -6 -5 ------- Run | Scr Mat Min Exi Min Mat Fac Was Fac DSF Fac Fac Robot Analysis Total . | . . . . . . . . . . . . Derelict Logs Recovered 1 | . . 1 . . . . . . . . . Drone Launches . | . . . . . . . . . . . . Drone Recoveries . | . . . . . . . . . . . . Exploration | -11 -10 -10 -10 -9 -8 -7 -7 -7 -7 -6 -5 ------------- Run | Scr Mat Min Exi Min Mat Fac Was Fac DSF Fac Fac Turns Passed 3034 | 61 107 207 454 136 187 157 82 76 41 294 1232 Spaces Moved 3206 | 49 88 129 432 245 197 168 125 166 62 364 1181 Core 409 | 33 . . . . . . . . . . 376 Treads . | . . . . . . . . . . . . Legs 1634 | 16 88 129 432 245 197 168 125 166 45 . 23 Wheels . | . . . . . . . . . . . . Hover . | . . . . . . . . . . . . Flight 1163 | . . . . . . . . . 17 364 782 Fastest Speed 34 | 50 120 120 45 45 45 90 45 45 34 34 40 Average Speed 67 | 93 120 120 103 47 90 90 53 45 46 34 55 Slowest Speed 190 | 150 120 120 120 90 105 90 90 45 90 120 190 Overloaded Moves 602 | . . . 4 233 58 . 102 166 39 . . Propulsion Burnouts . | . . . . . . . . . . . . Robots Hopped 10 | . . . . . . . . . . 1 9 Cave-ins Triggered . | . . . . . . . . . . . . Exploration Rate (%) 33 | 3 18 32 62 53 20 6 95 3 72 10 32 Regions Visited 11 Branch Regions 3 Pre-discovered Areas 1 | . . . . 1 . . . . . . . Known Exits Taken 2 | . . . . . 1 . . 1 . . . Unknown Exits Taken 6 | 1 1 1 1 1 . . . . . 1 . Scrap Searched . | . . . . . . . . . . . . Spaces Dug . | . . . . . . . . . . . . Terrain Destroyed 59 | . . . . . . . . . . . 59 Melee . | . . . . . . . . . . . . Projectile . | . . . . . . . . . . . . AOE 59 | . . . . . . . . . . . 59 Terrain Rammed . | . . . . . . . . . . . . Walls Destroyed . | . . . . . . . . . . . . Machines Disabled . | . . . . . . . . . . . . Actions | -11 -10 -10 -10 -9 -8 -7 -7 -7 -7 -6 -5 --------- Run | Scr Mat Min Exi Min Mat Fac Was Fac DSF Fac Fac Total 4036 | 63 89 151 441 261 205 174 139 166 72 531 1744 Wait 722 | . . 6 . . . . 13 . . 163 540 Move 3177 | 48 87 128 431 244 197 168 124 165 61 361 1163 Hop 10 | . . . . . . . . . . 1 9 Pick Up 32 | 8 2 2 4 . 2 4 1 1 2 2 4 Fast Attach 17 | 2 . . . . . . . . 2 1 12 Attach 27 | 4 . . 2 2 3 2 1 . 5 1 7 Detach 5 | . . . . . . . . . . 2 3 Swap . | . . . . . . . . . . . . Drop 9 | . . . 4 . 1 . . . . . 4 Fire 19 | . . 15 . 2 . . . . . . 2 Melee . | . . . . . . . . . . . . Ram . | . . . . . . . . . . . . Kick 16 | 1 . . . 13 2 . . . . . . Crush . | . . . . . . . . . . . . Escape Stasis . | . . . . . . . . . . . . Rewire 2 | . . . . . . . . . 2 . . Trap . | . . . . . . . . . . . . Miscellaneous . | . . . . . . . . . . . . Route ------- -11/Scrapyard -10/Materials -10/Mines -10/Exiles -9/Mines -8/Materials (discovered 3 exits: *Fac x3) -7/Factory -7/Waste -7/Factory -7/DSF -6/Factory -5/Factory (discovered 2 exits: Upp x2) History --------- Turn | Location | Event 11 | -11/Scrapyard | Discovered new exit (range 16) 62 | -11/Scrapyard | Entered Materials 98 | -10/Materials | Discovered new exit (range 15) 169 | -10/Materials | Entered Mines 237 | -10/Mines | Learned 4 Materials zone layouts 310 | -10/Mines | Build established: Mutant 368 | -10/Mines | Deemed a non-threat by the Exiles lab entrance 369 | -10/Mines | Discovered new exit (range 5) 376 | -10/Mines | Entered Exiles 418 | -10/Exiles | Met 8R-AWN 444 | -10/Exiles | Met EX-HEX 538 | -10/Exiles | Met EX-BIN 564 | -10/Exiles | Aligned with FarCom system 565 | -10/Exiles | Given EX-Vault access code 601 | -10/Exiles | Opened EX-Vault 613 | -10/Exiles | Found Prototype Leg 615 | -10/Exiles | Found Prototype Leg 618 | -10/Exiles | Identified Potential Leg (x2) 664 | -10/Exiles | Warned to stay clear of 0b10 Research branches 770 | -10/Exiles | Met EX-DEC 817 | -10/Exiles | Discovered new exit (range 11) 830 | -10/Exiles | Left Exiles lab with Potential Leg 830 | -10/Exiles | Entered Mines 831 | -9/Mines | Assembled infested the area 963 | -9/Mines | Discovered new exit (range 7) 964 | -9/Mines | Learned location of Storage (-7) 966 | -9/Mines | Entered Materials 966 | -8/Materials | Evolved 4 slots: Propulsion x2, Utility x2 967 | -8/Materials | Identified exit to Factory 1153 | -8/Materials | Entered Factory 1153 | -7/Factory | Evolved 2 slots: Utility x2 1172 | -7/Factory | Discovered new exit (range 9) 1184 | -7/Factory | Lost 4 parts (1p1n2w) 1310 | -7/Factory | Sucked down chute 1310 | -7/Factory | Entered Waste 1325 | -7/Waste | EMP discharged 1333 | -7/Waste | Spotted C-40 Crusher 1342 | -7/Waste | Spotted C-40 Crusher 1342 | -7/Waste | Spotted C-40 Crusher 1343 | -7/Waste | Spotted C-40 Crusher 1348 | -7/Waste | Spotted C-40 Crusher 1374 | -7/Waste | Spotted C-40 Crusher 1374 | -7/Waste | Crushed by Compactor (1 part destroyed, 1 dropped) 1384 | -7/Waste | Discovered new exit (range 16) 1392 | -7/Waste | Entered Factory 1468 | -7/Factory | Identified exit to DSF 1468 | -7/Factory | Entered DSF 1483 | -7/DSF | Additional patrols routed to DSF 1504 | -7/DSF | Discovered new exit (range 14) 1509 | -7/DSF | Entered Factory 1509 | -6/Factory | Evolved 2 slots: Utility x2 1583 | -6/Factory | Fabricated Micro-nuke Launcher (x1) 1800 | -6/Factory | Discovered new exit (range 5) 1803 | -6/Factory | Entered another Factory area 1803 | -5/Factory | Evolved 2 slots: Utility x2 2812 | -5/Factory | Core integrity fell below 50% 2874 | -5/Factory | Core integrity fell below 20% 2892 | -5/Factory | Lost 7 parts (1p2n3u1w) 2927 | -5/Factory | Identified exit to Upper Caves 3035 | -5/Factory | Destroyed by S-27 Virus with Autogun Last Messages --------------- (67,26) Map updated. 02947_ K-01 Serf collects debris. 02950_ System corrupted: Energy discharge (-35). 02951_ K-01 Serf collects debris. 02958_ Acquired 147 matter. 02962_ Acquired Fusion Compressor. 02967_ Dropped Fusion Compressor. 02976_ Connecting with Terminal... >>Layout(Zone) Retrieving Zone 1M layout... Downloaded map data. >>Alert(Check) Current Alert Level: 1-P Feedback: System corruption (+1%). 02976_ ALERT: Suspicious activity at Terminal F014. Dispatching Investigation squad. 02987_ D>RUNPE